fUSD/lending_fUSD_20250611
["ID","MTS","AMOUNT","RATE_DAILY","PERIOD"]
[365371246,1749622248968,-490.0,0.00016602,2]
[365371247,1749622248977,-490.0,0.00016602,2]
[365371248,1749622248988,-305.34,0.00016602,2]
[365371249,1749622248999,-490.0,0.00016602,2]
[365371250,1749622249009,-160.02,0.00016602,2]
[365371251,1749622249019,-542.60240662,0.00016602,2]
[365371252,1749622249029,-490.0,0.00016602,2]
[365371253,1749622249039,-572.69713864,0.00016602,2]
[365371254,1749622249048,-490.0,0.00016602,2]
[365371255,1749622249058,-490.0,0.00016602,2]
[365371256,1749622249069,-490.0,0.00016602,2]
[365371257,1749622249078,-490.0,0.00016602,2]
[365371258,1749622249089,-470.0,0.00016602,2]
[365371259,1749622249098,-490.0,0.00016602,2]
[365371260,1749622249107,-506.51,0.00016602,2]
[365371261,1749622249117,-408.48725925,0.00016602,2]
[365371262,1749622249127,-244.16,0.00016602,2]
[365371263,1749622249136,-470.9788181,0.00016602,2]
[365371264,1749622249145,-193.21,0.00016602,2]
[365371265,1749622249155,-490.0,0.00016602,2]
[365371266,1749622249165,-460.0,0.00016602,2]
[365371267,1749622249174,-490.0,0.00016602,2]
[365371268,1749622249184,-490.0,0.00016602,2]
[365371269,1749622249194,-490.0,0.00016602,2]
[365371270,1749622249203,-490.0,0.00016602,2]
[365371271,1749622249213,-490.0,0.00016602,2]
[365371272,1749622249223,-490.0,0.00016602,2]
[365371273,1749622249232,-490.0,0.00016602,2]
[365371274,1749622249242,-515.34639136,0.00016602,2]
[365371275,1749622249252,-490.0,0.00016602,2]
[365371276,1749622249262,-292.07,0.00016602,2]
[365371277,1749622249271,-490.0,0.00016602,2]
[365371278,1749622249281,-461.858068,0.00016602,2]
[365371279,1749622249291,-490.0,0.00016602,2]
[365371280,1749622249304,-544.11,0.00016602,2]
[365371281,1749622249315,-490.0,0.00016602,2]
[365371282,1749622249325,-490.0,0.00016602,2]
[365371283,1749622249334,-490.0,0.00016602,2]
[365371284,1749622249344,-490.0,0.00016602,2]
[365371285,1749622249354,-470.0,0.00016602,2]
[365371286,1749622249363,-490.0,0.00016602,2]
[365371287,1749622249373,-490.0,0.00016602,2]
[365371288,1749622249383,-410.0,0.00016602,2]
[365371289,1749622249393,-490.0,0.00016602,2]
[365371290,1749622249402,-490.0,0.00016602,2]
[365371291,1749622249412,-227.18,0.00016602,2]
[365371292,1749622249421,-610.36743464,0.00016602,2]
[365371293,1749622249430,-490.0,0.00016602,2]
[365371294,1749622249439,-490.0,0.00016602,2]
[365371295,1749622249448,-490.0,0.00016602,2]
[365371296,1749622249457,-373.29,0.00016602,2]
[365371297,1749622249467,-610.34,0.00016602,2]
[365371298,1749622249476,-490.0,0.00016602,2]
[365371299,1749622249485,-246.44,0.00016602,2]
[365371300,1749622249494,-602.58,0.00016602,2]
[365371301,1749622249503,-160.06,0.00016602,2]
[365371302,1749622249513,-490.0,0.00016602,2]
[365371303,1749622249522,-197.82,0.00016602,2]
[365371304,1749622249531,-538.47,0.00016602,2]
[365371305,1749622249541,-490.0,0.00016602,2]
[365371306,1749622249597,-332.23937651,0.00016602,2]
[365371307,1749622249608,-490.0,0.00016602,2]
[365371308,1749622249618,-196.56,0.00016602,2]
[365371309,1749622249627,-490.0,0.00016602,2]
[365371310,1749622249636,-8214.99,0.00016602,2]
[365371311,1749622249645,-490.0,0.00016602,2]
[365371312,1749622249655,-490.0,0.00016602,2]
[365371313,1749622249664,-490.0,0.00016602,2]
[365371314,1749622249674,-410.60623863,0.00016602,2]
[365371315,1749622249683,-490.0,0.00016602,2]
[365371316,1749622249692,-490.0,0.00016602,2]
[365371317,1749622249702,-331.41810898,0.00016602,2]
[365371318,1749622249712,-480.0,0.00016602,2]
[365371319,1749622249721,-416.11899253,0.00016602,2]
[365371320,1749622249731,-480.0,0.00016602,2]
[365371321,1749622249740,-490.0,0.00016602,2]
[365371322,1749622249749,-490.0,0.00016602,2]
[365371323,1749622249759,-490.0,0.00016602,2]
[365371324,1749622249768,-490.0,0.00016602,2]
[365371325,1749622249777,-547.13,0.00016602,2]
[365371326,1749622249787,-490.0,0.00016602,2]
[365371327,1749622249797,-490.0,0.00016602,2]
[365371328,1749622249807,-522.89,0.00016602,2]
[365371329,1749622249818,-490.0,0.00016602,2]
[365371330,1749622249828,-300.44,0.00016602,2]
[365371331,1749622249838,-490.0,0.00016602,2]
[365371332,1749622249848,-490.0,0.00016602,2]
[365371333,1749622249858,-490.0,0.00016602,2]
[365371334,1749622249867,-490.0,0.00016602,2]
[365371335,1749622249877,-490.0,0.00016602,2]
[365371336,1749622249886,-490.0,0.00016602,2]
[365371337,1749622249896,-490.0,0.00016602,2]
[365371338,1749622249905,-490.0,0.00016602,2]
[365371339,1749622249914,-490.0,0.00016602,2]
[365371340,1749622249923,-490.0,0.00016602,2]
[365371341,1749622249933,-490.0,0.00016602,2]
[365371342,1749622249942,-210.16406297,0.00016602,2]
[365371343,1749622249952,-490.0,0.00016602,2]
[365371344,1749622249961,-490.0,0.00016602,2]
[365371345,1749622249971,-546.65,0.00016602,2]
[365371346,1749622249981,-490.0,0.00016602,2]
[365371347,1749622249990,-490.0,0.00016602,2]
[365371348,1749622250000,-490.0,0.00016602,2]
[365371349,1749622250009,-490.0,0.00016602,2]
[365371350,1749622250019,-490.0,0.00016602,2]
[365371351,1749622250028,-439.62504337,0.00016602,2]
[365371352,1749622250037,-490.0,0.00016602,2]
[365371353,1749622250046,-480.0,0.00016602,2]
[365371354,1749622250055,-490.0,0.00016602,2]
[365371355,1749622250066,-490.0,0.00016602,2]
[365371356,1749622250075,-490.0,0.00016602,2]
[365371357,1749622250083,-480.0,0.00016602,2]
[365371358,1749622250092,-490.0,0.00016602,2]
[365371359,1749622250101,-490.0,0.00016602,2]
[365371360,1749622250111,-480.0,0.00016602,2]
[365371361,1749622250119,-490.0,0.00016602,2]
[365371362,1749622250129,-490.0,0.00016602,2]
[365371363,1749622250138,-490.0,0.00016602,2]
[365371364,1749622250147,-544.51,0.00016602,2]
[365371365,1749622250156,-490.0,0.00016602,2]
[365371366,1749622250166,-490.0,0.00016602,2]
[365371367,1749622250175,-490.0,0.00016602,2]
[365371368,1749622250184,-187.87,0.00016602,2]
[365371369,1749622250193,-490.0,0.00016602,2]
[365371370,1749622250202,-349.83651073,0.00016602,2]
[365371371,1749622250211,-490.0,0.00016602,2]
[365371372,1749622250221,-490.0,0.00016602,2]
[365371373,1749622250230,-490.0,0.00016602,2]
[365371374,1749622250240,-490.0,0.00016602,2]
[365371375,1749622250249,-490.0,0.00016602,2]
[365371376,1749622250258,-345.69,0.00016602,2]
[365371377,1749622250267,-490.0,0.00016602,2]
[365371378,1749622250277,-490.0,0.00016602,2]
[365371379,1749622250286,-611.55,0.00016602,2]
[365371380,1749622250296,-954.68,0.00016602,2]
[365371381,1749622250309,-407.24900552,0.00016602,2]
[365371382,1749622250320,-480.0,0.00016602,2]
[365371383,1749622250329,-353.1929292,0.00016602,2]
[365371384,1749622250339,-480.0,0.00016602,2]
[365371385,1749622250351,-490.0,0.00016602,2]
[365371386,1749622250359,-596.82599765,0.00016602,2]
[365371387,1749622250368,-490.0,0.00016602,2]
[365371388,1749622250378,-337.79,0.00016602,2]
[365371389,1749622250388,-490.0,0.00016602,2]
[365371390,1749622250400,-287.37,0.00016602,2]
[365371391,1749622250411,-480.0,0.00016602,2]
[365371392,1749622250420,-490.0,0.00016602,2]
[365371393,1749622250431,-490.0,0.00016602,2]
[365371394,1749622250440,-480.0,0.00016602,2]
[365371395,1749622250449,-204.0,0.00016725,2]
[365371396,1749622250458,-11337.12676978,0.00016734,2]
[365371397,1749622250467,-490.0,0.00016767,2]
[365371398,1749622250476,-514.65,0.00016767,2]
[365371399,1749622250486,-490.0,0.00016767,2]
[365371400,1749622250495,-287.5,0.00016767,2]
[365371401,1749622250503,-177.74,0.00016767,2]
[365371402,1749622250514,-490.0,0.00016767,2]
[365371403,1749622250526,-639.07,0.00016767,2]
[365371404,1749622250536,-440.0,0.00016767,2]
[365371405,1749622250545,-490.0,0.00016767,2]
[365371406,1749622250554,-470.0,0.00016767,2]
[365371407,1749622250563,-564.46,0.00016767,2]
[365371408,1749622250574,-490.0,0.00016767,2]
[365371409,1749622250583,-480.0,0.00016767,2]
[365371410,1749622250592,-490.0,0.00016767,2]
[365371411,1749622250602,-183.48,0.00016767,2]
[365371412,1749622250611,-490.0,0.00016767,2]
[365371413,1749622250621,-188.39,0.00016767,2]
[365371414,1749622250630,-490.0,0.00016767,2]
[365371415,1749622250639,-490.0,0.00016767,2]
[365371416,1749622250649,-153.14,0.00016767,2]
[365371417,1749622250658,-324.42,0.00016767,2]
[365371418,1749622250667,-215.83,0.00016767,2]
[365371419,1749622250676,-167.08,0.00016767,2]
[365371420,1749622250685,-307.66,0.00016767,2]
[365371421,1749622250694,-561.66490372,0.00016767,2]
[365371422,1749622250703,-490.0,0.00016767,2]
[365371423,1749622250713,-490.0,0.00016767,2]
[365371424,1749622250723,-490.0,0.00016767,2]
[365371425,1749622250732,-490.0,0.00016767,2]
[365371426,1749622250742,-490.0,0.00016767,2]
[365371427,1749622250751,-490.0,0.00016767,2]
[365371428,1749622250760,-480.0,0.00016767,2]
[365371429,1749622250769,-364.36,0.00016767,2]
[365371430,1749622250778,-490.0,0.00016767,2]
[365371431,1749622250787,-470.0,0.00016767,2]
[365371432,1749622250797,-490.0,0.00016767,2]
[365371433,1749622250806,-615.16,0.00016767,2]
[365371434,1749622250816,-490.0,0.00016767,2]
[365371435,1749622250825,-636.11670409,0.00016767,2]
[365371436,1749622250834,-176.25,0.00016767,2]
[365371437,1749622250843,-490.0,0.00016767,2]
[365371438,1749622250852,-490.0,0.00016767,2]
[365371439,1749622250861,-490.0,0.00016767,2]
[365371440,1749622250870,-624.90761345,0.00016767,2]
[365371441,1749622250880,-490.0,0.00016767,2]
[365371442,1749622250889,-308.63999253,0.00016767,2]
[365371443,1749622250898,-592.76,0.00016767,2]
[365371444,1749622250907,-490.0,0.00016767,2]
[365371445,1749622250916,-544.7,0.00016767,2]
[365371446,1749622250924,-216.59,0.00016767,2]
[365371447,1749622250934,-490.0,0.00016767,2]
[365371448,1749622250943,-331.35,0.00016767,2]
[365371449,1749622250952,-269.19,0.00016767,2]
[365371450,1749622250961,-355.74,0.00016767,2]
[365371451,1749622250971,-490.0,0.00016767,2]
[365371452,1749622250979,-490.0,0.00016767,2]
[365371453,1749622250988,-490.0,0.00016767,2]
[365371454,1749622250997,-490.0,0.00016767,2]
[365371455,1749622251007,-490.0,0.00016767,2]
[365371456,1749622251016,-490.0,0.00016767,2]
[365371457,1749622251025,-490.0,0.00016767,2]
[365371458,1749622251033,-490.0,0.00016767,2]
[365371459,1749622251042,-527.09,0.00016767,2]
[365371460,1749622251051,-616.72,0.00016767,2]
[365371461,1749622251060,-590.54232703,0.00016767,2]
[365371462,1749622251070,-310.59,0.00016767,2]
[365371463,1749622251078,-490.0,0.00016767,2]
[365371464,1749622251087,-490.0,0.00016767,2]
[365371465,1749622251096,-490.0,0.00016767,2]
[365371466,1749622251105,-213.81162379,0.00016767,2]
[365371467,1749622251114,-624.3,0.00016767,2]
[365371468,1749622251123,-302.12,0.00016767,2]
[365371469,1749622251132,-490.0,0.00016767,2]
[365371470,1749622251141,-540.06484798,0.00016767,2]
[365371471,1749622251150,-490.0,0.00016767,2]
[365371472,1749622251159,-490.0,0.00016767,2]
[365371473,1749622251168,-490.0,0.00016767,2]
[365371474,1749622251178,-490.0,0.00016767,2]
[365371475,1749622251187,-8214.99,0.00016767,2]
[365371476,1749622251196,-203.15,0.00016767,2]
[365371477,1749622251205,-490.0,0.00016767,2]
[365371478,1749622251215,-490.0,0.00016767,2]
[365371479,1749622251224,-490.0,0.00016767,2]
[365371480,1749622251234,-490.0,0.00016767,2]
[365371481,1749622251244,-490.0,0.00016767,2]
[365371482,1749622251253,-490.0,0.00016767,2]
[365371483,1749622251262,-522.14,0.00016767,2]
[365371484,1749622251272,-361.08,0.00016767,2]
[365371485,1749622251281,-490.0,0.00016767,2]
[365371486,1749622251291,-490.0,0.00016767,2]
[365371487,1749622251304,-490.0,0.00016767,2]
[365371488,1749622251313,-489.37,0.00016767,2]
[365371489,1749622251323,-344.47144739,0.00016767,2]
[365371490,1749622251332,-490.0,0.00016767,2]
[365371491,1749622251342,-490.0,0.00016767,2]
[365371492,1749622251351,-490.0,0.00016767,2]
[365371493,1749622251360,-490.0,0.00016767,2]
[365371494,1749622251370,-490.0,0.00016767,2]
[365371495,1749622251381,-480.0,0.00016767,2]
[365371496,1749622251392,-546.65,0.00016767,2]
[365371497,1749622251401,-490.0,0.00016767,2]
[365371498,1749622251410,-489.3,0.00016767,2]
[365371499,1749622251420,-315.21,0.00016767,2]
[365371500,1749622251429,-490.0,0.00016767,2]
[365371501,1749622251438,-480.0,0.00016767,2]
[365371502,1749622251448,-490.0,0.00016767,2]
[365371503,1749622251457,-490.0,0.00016767,2]
[365371504,1749622251467,-490.0,0.00016767,2]
[365371505,1749622251476,-490.0,0.00016767,2]
[365371506,1749622251485,-490.0,0.00016767,2]
[365371507,1749622251494,-490.0,0.00016767,2]
[365371508,1749622251502,-490.0,0.00016767,2]
[365371509,1749622251511,-490.0,0.00016767,2]
[365371510,1749622251520,-490.0,0.00016767,2]
[365371511,1749622251530,-490.0,0.00016767,2]
[365371512,1749622251539,-490.0,0.00016767,2]
[365371513,1749622251548,-490.0,0.00016767,2]
[365371514,1749622251557,-619.89,0.00016767,2]
[365371515,1749622251567,-499.78,0.00016767,2]
[365371516,1749622251576,-490.0,0.00016767,2]
[365371517,1749622251586,-490.0,0.00016767,2]
[365371518,1749622251596,-314.49,0.00016767,2]
[365371519,1749622251606,-490.0,0.00016767,2]
[365371520,1749622251616,-954.68,0.00016767,2]
[365371521,1749622251625,-490.0,0.00016767,2]
[365371522,1749622251635,-490.0,0.00016767,2]
[365371523,1749622251644,-352.01,0.00016767,2]
[365371524,1749622251654,-490.0,0.00016767,2]
[365371525,1749622251664,-490.0,0.00016767,2]
[365371526,1749622251673,-277.38,0.00016825,2]
[365371527,1749622251682,-205.1569122,0.00016849,2]
[365371528,1749622251692,-150.0,0.00016849,2]
[365371529,1749622251701,-150.0,0.00016849,2]
[365371530,1749622251711,-500.0,0.00016849,2]
[365371531,1749622251721,-150.0,0.00016849,2]
[365371532,1749622251731,-150.0,0.00016849,2]
[365371533,1749622251740,-150.0,0.00016876,2]
[365371534,1749622251750,-500.0,0.00016876,2]
[365371535,1749622251760,-150.0,0.00016876,2]
[365371536,1749622251769,-618.0,0.00016889,2]
[365371537,1749622251779,-685.0,0.00016894,2]
[365371538,1749622251790,-250.0,0.00016904,2]
[365371539,1749622251799,-500.0,0.00016904,2]
[365371540,1749622251809,-490.0,0.00016931,2]
[365371541,1749622251819,-363.58,0.00016931,2]
[365371542,1749622251829,-490.0,0.00016931,2]
[365371543,1749622251839,-152.0,0.00016931,2]
[365371544,1749622251848,-398.9,0.00016931,2]
[365371545,1749622251858,-327.85,0.00016931,2]
[365371546,1749622251868,-151.8,0.00016931,2]
[365371547,1749622251877,-490.0,0.00016931,2]
[365371548,1749622251887,-490.0,0.00016931,2]
[365371549,1749622251896,-490.0,0.00016931,2]
[365371550,1749622251906,-490.0,0.00016931,2]
[365371551,1749622251915,-294.36169233,0.00016931,2]
[365371552,1749622251924,-414.61,0.00016931,2]
[365371553,1749622251934,-490.0,0.00016931,2]
[365371554,1749622251943,-490.0,0.00016931,2]
[365371555,1749622251952,-228.15,0.00016931,2]
[365371556,1749622251962,-490.0,0.00016931,2]
[365371557,1749622251971,-490.0,0.00016931,2]
[365371558,1749622251981,-490.0,0.00016931,2]
[365371559,1749622251991,-490.0,0.00016931,2]
[365371560,1749622252001,-490.0,0.00016931,2]
[365371561,1749622252010,-401.27,0.00016931,2]
[365371562,1749622252019,-490.0,0.00016931,2]
[365371563,1749622252030,-490.0,0.00016931,2]
[365371564,1749622252040,-490.0,0.00016931,2]
[365371565,1749622252050,-601.95,0.00016931,2]
[365371566,1749622252059,-490.0,0.00016931,2]
[365371567,1749622252069,-582.95711032,0.00016931,2]
[365371568,1749622252078,-490.0,0.00016931,2]
[365371569,1749622252087,-490.0,0.00016931,2]
[365371570,1749622252096,-330.48,0.00016931,2]
[365371571,1749622252106,-490.0,0.00016931,2]
[365371572,1749622252115,-490.0,0.00016931,2]
[365371573,1749622252125,-490.0,0.00016931,2]
[365371574,1749622252134,-490.0,0.00016931,2]
[365371575,1749622252143,-560.51,0.00016931,2]
[365371576,1749622252153,-490.0,0.00016931,2]
[365371577,1749622252163,-490.0,0.00016931,2]
[365371578,1749622252172,-8214.99,0.00016931,2]
[365371579,1749622252181,-490.0,0.00016931,2]
[365371580,1749622252190,-490.0,0.00016931,2]
[365371581,1749622252200,-490.0,0.00016931,2]
[365371582,1749622252209,-490.0,0.00016931,2]
[365371583,1749622252219,-490.0,0.00016931,2]
[365371584,1749622252228,-490.0,0.00016931,2]
[365371585,1749622252237,-490.0,0.00016931,2]
[365371586,1749622252246,-592.69799531,0.00016931,2]
[365371587,1749622252256,-406.11,0.00016931,2]
[365371588,1749622252265,-490.0,0.00016931,2]
[365371589,1749622252274,-490.0,0.00016931,2]
[365371590,1749622252285,-490.0,0.00016931,2]
[365371591,1749622252294,-490.0,0.00016931,2]
[365371592,1749622252307,-546.65,0.00016931,2]
[365371593,1749622252316,-490.0,0.00016931,2]
[365371594,1749622252326,-260.08,0.00016931,2]
[365371595,1749622252336,-490.0,0.00016931,2]
[365371596,1749622252346,-560.27739508,0.00016931,2]
[365371597,1749622252355,-489.3,0.00016931,2]
[365371598,1749622252367,-557.92683348,0.00016931,2]
[365371599,1749622252379,-490.0,0.00016931,2]
[365371600,1749622252389,-490.0,0.00016931,2]
[365371601,1749622252400,-490.0,0.00016931,2]
[365371602,1749622252411,-490.0,0.00016931,2]
[365371603,1749622252422,-490.0,0.00016931,2]
[365371604,1749622252431,-490.0,0.00016931,2]
[365371605,1749622252441,-490.0,0.00016931,2]
[365371606,1749622252450,-582.38,0.00016931,2]
[365371607,1749622252460,-490.0,0.00016931,2]
[365371608,1749622252470,-619.72,0.00016931,2]
[365371609,1749622252479,-954.68,0.00016931,2]
[365371610,1749622252489,-490.0,0.00016931,2]
[365371611,1749622252499,-490.0,0.00016931,2]
[365371612,1749622252508,-445.60542591,0.00016931,2]
[365371613,1749622252518,-653.0,0.00016972,2]
[365371614,1749622252527,-589.0,0.00016977,2]
[365371615,1749622252537,-833.29909032,0.00016984,2]
[365371616,1749622252547,-150.90495345,0.0001705,2]
[365371617,1749622252557,-326.0,0.00017055,2]
[365371618,1749622252567,-1435.0,0.0001706,2]
[365371619,1749622252576,-316.11751188,0.00017086,2]
[365371620,1749622252586,-212.27,0.00017095,2]
[365371621,1749622252596,-490.0,0.00017095,2]
[365371622,1749622252605,-400.57,0.00017095,2]
[365371623,1749622252615,-490.0,0.00017095,2]
[365371624,1749622252625,-462.02,0.00017095,2]
[365371625,1749622252635,-490.0,0.00017095,2]
[365371626,1749622252644,-533.15,0.00017095,2]
[365371627,1749622252654,-490.0,0.00017095,2]
[365371628,1749622252664,-490.0,0.00017095,2]
[365371629,1749622252673,-490.0,0.00017095,2]
[365371630,1749622252683,-603.77281313,0.00017095,2]
[365371631,1749622252692,-433.33180517,0.00017095,2]
[365371632,1749622252702,-490.0,0.00017095,2]
[365371633,1749622252712,-490.0,0.00017095,2]
[365371634,1749622252722,-191.9,0.00017095,2]
[365371635,1749622252732,-221.42,0.00017095,2]
[365371636,1749622252742,-225.12,0.00017095,2]
[365371637,1749622252752,-316.4416947,0.00017095,2]
[365371638,1749622252762,-319.25,0.00017095,2]
[365371639,1749622252772,-272.42,0.00017095,2]
[365371640,1749622252783,-490.0,0.00017095,2]
[365371641,1749622252792,-490.0,0.00017095,2]
[365371642,1749622252802,-597.6,0.00017095,2]
[365371643,1749622252813,-8214.99,0.00017095,2]
[365371644,1749622252823,-241.37060666,0.00017095,2]
[365371645,1749622252833,-219.43,0.00017095,2]
[365371646,1749622252842,-490.0,0.00017095,2]
[365371647,1749622252852,-490.0,0.00017095,2]
[365371648,1749622252862,-490.0,0.00017095,2]
[365371649,1749622252872,-310.78,0.00017095,2]
[365371650,1749622252882,-490.0,0.00017095,2]
[365371651,1749622252892,-490.0,0.00017095,2]
[365371652,1749622252902,-490.0,0.00017095,2]
[365371653,1749622252912,-351.59,0.00017095,2]
[365371654,1749622252922,-271.17,0.00017095,2]
[365371655,1749622252932,-546.65,0.00017095,2]
[365371656,1749622252942,-451.52,0.00017095,2]
[365371657,1749622252952,-490.0,0.00017095,2]
[365371658,1749622252961,-373.95,0.00017095,2]
[365371659,1749622252972,-490.0,0.00017095,2]
[365371660,1749622252982,-490.0,0.00017095,2]
[365371661,1749622252991,-490.0,0.00017095,2]
[365371662,1749622253001,-490.0,0.00017095,2]
[365371663,1749622253011,-490.0,0.00017095,2]
[365371664,1749622253021,-210.7,0.00017095,2]
[365371665,1749622253031,-490.0,0.00017095,2]
[365371666,1749622253041,-954.68,0.00017095,2]
[365371667,1749622253051,-503.78,0.00017095,2]
[365371668,1749622253061,-490.0,0.00017095,2]
[365371669,1749622253072,-11337.12676978,0.0001713,2]
[365371670,1749622253081,-739.0,0.00017138,2]
[365371671,1749622253091,-430.0,0.00017143,2]
[365371672,1749622253100,-594.0,0.0001722,2]
[365371673,1749622253110,-442.0,0.00017226,2]
[365371674,1749622253121,-163.1632097,0.00017228,2]
[365371675,1749622253131,-490.0,0.0001726,2]
[365371676,1749622253142,-531.57,0.0001726,2]
[365371677,1749622253152,-490.0,0.0001726,2]
[365371678,1749622253162,-490.0,0.0001726,2]
[365371679,1749622253171,-403.63,0.0001726,2]
[365371680,1749622253181,-291.03,0.0001726,2]
[365371681,1749622253191,-490.0,0.0001726,2]
[365371682,1749622253201,-490.0,0.0001726,2]
[365371683,1749622253211,-490.0,0.0001726,2]
[365371684,1749622253221,-490.0,0.0001726,2]
[365371685,1749622253232,-8214.99,0.0001726,2]
[365371686,1749622253241,-490.0,0.0001726,2]
[365371687,1749622253252,-490.0,0.0001726,2]
[365371688,1749622253262,-490.0,0.0001726,2]
[365371689,1749622253273,-490.0,0.0001726,2]
[365371690,1749622253283,-490.0,0.0001726,2]
[365371691,1749622253293,-490.0,0.0001726,2]
[365371692,1749622253308,-546.65,0.0001726,2]
[365371693,1749622253319,-236.91,0.0001726,2]
[365371694,1749622253330,-594.18047044,0.0001726,2]
[365371695,1749622253476,-499.99,0.0001726,2]
[365371696,1749622253502,-325.72,0.0001726,2]
[365371697,1749622253512,-490.0,0.0001726,2]
[365371698,1749622253521,-490.0,0.0001726,2]
[365371699,1749622253531,-490.0,0.0001726,2]
[365371700,1749622253540,-954.68,0.0001726,2]
[365371701,1749622253550,-490.0,0.0001726,2]
[365371702,1749622253559,-736.0,0.00017303,2]
[365371703,1749622253569,-1000.0,0.00017322,2]
[365371704,1749622253579,-219.38042429,0.00017324,2]
[365371705,1749622253589,-165.73,0.00017354,2]
[365371706,1749622253598,-485.0,0.00017386,2]
[365371707,1749622253608,-211.42,0.00017387,2]
[365371708,1749622253618,-235.18721525,0.00017399,2]
[365371709,1749622253628,-490.0,0.00017424,2]
[365371710,1749622253638,-490.0,0.00017424,2]
[365371711,1749622253647,-581.26448151,0.00017424,2]
[365371712,1749622253657,-490.0,0.00017424,2]
[365371713,1749622253667,-473.47,0.00017424,2]
[365371714,1749622253677,-564.18,0.00017424,2]
[365371715,1749622253687,-490.0,0.00017424,2]
[365371716,1749622253697,-8214.99,0.00017424,2]
[365371717,1749622253706,-322.76808641,0.00017424,2]
[365371718,1749622253716,-416.12527121,0.00017424,2]
[365371719,1749622253726,-490.0,0.00017424,2]
[365371720,1749622253735,-490.0,0.00017424,2]
[365371721,1749622253746,-490.0,0.00017424,2]
[365371722,1749622253756,-490.0,0.00017424,2]
[365371723,1749622253765,-546.65,0.00017424,2]
[365371724,1749622253775,-490.0,0.00017424,2]
[365371725,1749622253785,-490.0,0.00017424,2]
[365371726,1749622253794,-234.14589928,0.00017424,2]
[365371727,1749622253804,-954.68,0.00017424,2]
[365371728,1749622253814,-168.84,0.00017424,2]
[365371729,1749622253824,-516.0,0.00017469,2]
[365371730,1749622253834,-11337.12676978,0.00017525,2]
[365371731,1749622253843,-329.0,0.00017551,2]
[365371732,1749622253853,-490.0,0.00017589,2]
[365371733,1749622253863,-490.0,0.00017589,2]
[365371734,1749622253873,-420.2,0.00017589,2]
[365371735,1749622253883,-269.48,0.00017589,2]
[365371736,1749622253893,-8214.99,0.00017589,2]
[365371737,1749622253903,-490.0,0.00017589,2]
[365371738,1749622253913,-490.0,0.00017589,2]
[365371739,1749622253922,-490.0,0.00017589,2]
[365371740,1749622253932,-490.0,0.00017589,2]
[365371741,1749622253941,-546.65,0.00017589,2]
[365371742,1749622253951,-490.0,0.00017589,2]
[365371743,1749622253960,-427.35,0.00017589,2]
[365371744,1749622253970,-954.68,0.00017589,2]
[365371745,1749622253980,-577.0,0.00017634,2]